[Event "DEN-chT XtraCon 2018-19"]
[Site "Denmark"]
[Date "2019.01.12"]
[Round "5"]
[White "Bromann, Thorbjorn"]
[Black "Pedersen, Nicolai Vesterbaek"]
[Result "1-0"]
[ECO "A45"]
[WhiteElo "2390"]
[BlackElo "2392"]
[Annotator "NA"]
[PlyCount "73"]
[EventDate "2018.10.27"]
[EventType "team-tourn"]
[EventCountry "DEN"]
[SourceTitle "playchess.com"]
[Source "ChessBase"]
[SourceQuality "1"]
[TimeControl "40/5400+30:1800+30"]

1. d4 {[%emt 0:00:00]} Nf6 {[%emt 0:00:00]} 2. Nc3 {[%emt 0:00:00]} d5 {[%emt 0:00:00]} 3. Bf4 {[%emt 0:00:00]} a6 {[%emt 0:00:20]} 4. e3 {[%emt 0:00:18]} e6 {[%emt 0:01:28]} 5. a3 {[%emt 0:01:38]} c5 {[%emt 0:09:22]} 6. Nf3 {[%emt 0:00:15]} b5 {[%emt 0:07:05]} 7. Ne5 {[%emt 0:01:17]} Bb7 {[%emt 0:08:13]} 8. Nd3 {[%emt 0:04:35]} c4 {[%emt 0:17:44]} 9. Ne5 {[%emt 0:05:10]} Nbd7 {[%emt 0:11:49]} 10. Be2 {[%emt 0:06:52]} Nxe5 {[%emt 0:09:30]} 11. Bxe5 {[%emt 0:01:41]} b4 {[%emt 0:03:09]} 12. axb4 {[%emt 0:06:54]} Bxb4 {[%emt 0:00:10]} 13. O-O {[%emt 0:00:10]} O-O {[%emt 0:02:22]} 14. Na4 {[%emt 0:00:59]} Nd7 {[%emt 0:04:18]} 15. c3 {[%emt 0:07:37]} Nxe5 {[%emt 0:02:24]} 16. cxb4 {[%emt 0:00:38]} Nc6 {[%emt 0:00:23]} 17. Nc5 {[%emt 0:06:41]} Rb8 {[%emt 0:03:38]} 18. Ra4 {[%emt 0:10:50]} Bc8 {[%emt 0:05:44]} 19. b3 {[%emt 0:04:51]} Rxb4 {[%emt 0:04:36]} 20. bxc4 {[%emt 0:02:55]} dxc4 {[%emt 0:00:32]} 21. Bxc4 {[%emt 0:06:51]} a5 {[%emt 0:01:00]} 22. Nd3 {[%emt 0:10:18]} Rb6 {[%emt 0:00:45]} 23. Nc5 {[%emt 0:04:52]} Rb4 {[%emt 0:00:28]} 24. Rxb4 {[%emt 0:01:27]} Nxb4 {[%emt 0:02:05]} 25. Qa4 {[%emt 0:00:44]} Qc7 {[%emt 0:04:38]} 26. Rc1 {[%emt 0:06:39]} Qb6 {[%emt 0:00:38]} 27. Nb3 {[%emt 0:01:57]} Nc6 {[%emt 0:00:19]} 28. Bb5 {[%emt 0:04:06]} Na7 {[%emt 0:00:08]} 29. Bf1 {[%emt 0:00:09]} Bb7 {[%emt 0:00:45]} 30. Nxa5 {[%emt 0:00:41]} Bd5 {[%emt 0:00:21]} 31. Nc4 {[%emt 0:01:14]} Qc7 {[%emt 0:00:46]} 32. Ra1 {[%emt 0:01:16]} Nc8 {[%emt 0:00:33]} 33. Qa5 {[%emt 0:00:55]} Qb7 {[%emt 0:00:35]} 34. Qc5 {[%emt 0:00:27]} Rd8 {[%emt 0:00:24]} 35. Na5 {[%emt 0:00:50]} Qb2 {[%emt 0:00:35]} 36. Rc1 {[%emt 0:00:52]} Nd6 {[%emt 0:00:16]} 37. Qxd6 {[%emt 0:00:32]} 1-0

[Event "DEN-chT XtraCon 2018-19"]
[Site "Denmark"]
[Date "2019.01.12"]
[Round "5"]
[White "Skytte, Rasmus"]
[Black "Haubro, Martin"]
[Result "0-1"]
[ECO "D30"]
[WhiteElo "2382"]
[BlackElo "2321"]
[Annotator "NA"]
[PlyCount "88"]
[EventDate "2018.10.27"]
[EventType "team-tourn"]
[EventCountry "DEN"]
[SourceTitle "playchess.com"]
[Source "ChessBase"]
[SourceQuality "1"]
[TimeControl "40/5400+30:1800+30"]

1. d4 {[%emt 0:00:00]} d5 {[%emt 0:00:00]} 2. c4 {[%emt 0:00:14]} e6 {[%emt 0:00:00]} 3. Nf3 {[%emt 0:01:07]} c6 {[%emt 0:00:06]} 4. Nbd2 {[%emt 0:01:56]} Nf6 {[%emt 0:06:12]} 5. e3 {[%emt 0:03:12]} Nbd7 {[%emt 0:01:13]} 6. b3 {[%emt 0:01:56]} Ne4 {[%emt 0:01:26]} 7. Nxe4 {[%emt 0:01:13]} dxe4 {[%emt 0:00:50]} 8. Nd2 {[%emt 0:00:07]} f5 {[%emt 0:02:19]} 9. Bb2 {[%emt 0:06:58]} Bd6 {[%emt 0:12:36]} 10. Qh5+ {[%emt 0:12:49]} g6 {[%emt 0:08:14]} 11. Qh6 {[%emt 0:00:44]} Bf8 {[%emt 0:01:10]} 12. Qh3 {[%emt 0:01:28]} Bg7 {[%emt 0:00:07]} 13. f3 {[%emt 0:07:50]} exf3 {[%emt 0:02:03]} 14. Nxf3 {[%emt 0:15:39]} Qa5+ {[%emt 0:00:57]} 15. Kd1 {[%emt 0:02:23]} O-O {[%emt 0:12:02]} 16. Kc2 {[%emt 0:01:30]} Re8 {[%emt 0:07:35]} 17. Bc3 {[%emt 0:09:38]} Qc7 {[%emt 0:01:20]} 18. Bd3 {[%emt 0:02:23]} e5 {[%emt 0:01:15]} 19. c5 {[%emt 0:00:52]} b5 {[%emt 0:03:43]} 20. cxb6 {[%emt 0:03:14]} Nxb6 {[%emt 0:00:04]} 21. Ba5 {[%emt 0:03:41]} Qe7 {[%emt 0:04:15]} 22. Nxe5 {[%emt 0:07:40]} Bxe5 {[%emt 0:01:48]} 23. dxe5 {[%emt 0:00:09]} Be6 {[%emt 0:06:48]} 24. Bc3 {[%emt 0:05:33]} Nd5 {[%emt 0:00:46]} 25. Rac1 {[%emt 0:02:19]} Nxc3 {[%emt 0:02:48]} 26. Kxc3 {[%emt 0:00:07]} Qc5+ {[%emt 0:00:03]} 27. Kb2 {[%emt 0:01:11]} Qxe5+ {[%emt 0:00:12]} 28. Rc3 {[%emt 0:00:46]} a5 {[%emt 0:10:27]} 29. Qh6 {[%emt 0:02:50]} Bd5 {[%emt 0:02:00]} 30. Rhc1 {[%emt 0:03:47]} a4 {[%emt 0:00:28]} 31. Qf4 {[%emt 0:01:28]} axb3 {[%emt 0:00:05]} 32. axb3 {[%emt 0:00:08]} Qe7 {[%emt 0:01:17]} 33. Bc4 {[%emt 0:01:05]} Qa3+ {[%emt 0:01:10]} 34. Kc2 {[%emt 0:00:06]} Qa2+ {[%emt 0:02:11]} 35. Kd1 {[%emt 0:00:08]} Rad8 {[%emt 0:00:03]} 36. Rd3 {[%emt 0:01:13]} Qxg2 {[%emt 0:00:58]} 37. Rc2 {[%emt 0:00:19]} Qg1+ {[%emt 0:02:31]} 38. Kd2 {[%emt 0:00:15]} Bxc4 {[%emt 0:00:32]} 39. Qxc4+ {[%emt 0:00:18]} Kg7 {[%emt 0:00:05]} 40. Qc3+ {[%emt 0:01:12]} Kh6 {[%emt 0:00:06]} 41. Rd4 {[%emt 0:04:10]} c5 {[%emt 0:01:22]} 42. Rxd8 {[%emt 0:02:08]} Rxd8+ {[%emt 0:00:04]} 43. Ke2 {[%emt 0:00:05]} Rd1 {[%emt 0:00:29]} 44. Qxc5 {[%emt 0:00:36]} Qf1# 0-1

[Event "DEN-chT XtraCon 2018-19"]
[Site "Denmark"]
[Date "2019.01.12"]
[Round "5"]
[White "Rostgaard, Tobias Valentin"]
[Black "Hagen, Andreas Skytte"]
[Result "1/2-1/2"]
[ECO "B52"]
[WhiteElo "2374"]
[BlackElo "2369"]
[Annotator "NA"]
[PlyCount "106"]
[EventDate "2018.10.27"]
[EventType "team-tourn"]
[EventCountry "DEN"]
[SourceTitle "playchess.com"]
[Source "ChessBase"]
[SourceQuality "1"]
[TimeControl "40/5400+30:1800+30"]

1. e4 {[%emt 0:00:00]} c5 {[%emt 0:00:00]} 2. Nf3 {[%emt 0:00:00]} d6 {[%emt 0:00:00]} 3. Bb5+ {[%emt 0:00:11]} Bd7 {[%emt 0:00:00]} 4. Bxd7+ {[%emt 0:00:11]} Qxd7 {[%emt 0:00:00]} 5. c4 {[%emt 0:00:15]} Nc6 {[%emt 0:00:00]} 6. d4 {[%emt 0:00:53]} cxd4 {[%emt 0:00:01]} 7. Nxd4 {[%emt 0:00:06]} g6 {[%emt 0:00:05]} 8. Nc3 {[%emt 0:00:07]} Bg7 {[%emt 0:00:05]} 9. Be3 {[%emt 0:00:05]} Nf6 {[%emt 0:00:05]} 10. f3 {[%emt 0:00:11]} O-O {[%emt 0:00:07]} 11. Qd3 {[%emt 0:02:35]} Rfc8 {[%emt 0:05:19]} 12. b3 {[%emt 0:00:20]} Qd8 {[%emt 0:02:14]} 13. O-O {[%emt 0:00:16]} a6 {[%emt 0:00:58]} 14. Rac1 {[%emt 0:04:53]} Nd7 {[%emt 0:00:17]} 15. Rfd1 {[%emt 0:03:17]} Bxd4 {[%emt 0:00:43]} 16. Bxd4 {[%emt 0:00:40]} Nxd4 {[%emt 0:00:06]} 17. Qxd4 {[%emt 0:00:06]} b5 {[%emt 0:00:37]} 18. cxb5 {[%emt 0:02:23]} axb5 {[%emt 0:02:49]} 19. Nd5 {[%emt 0:00:49]} Rc5 {[%emt 0:41:47]} 20. Rxc5 {[%emt 0:13:07]} Nxc5 {[%emt 0:12:15]} 21. Rc1 {[%emt 0:02:13]} Rxa2 {[%emt 0:07:28]} 22. b4 {[%emt 0:24:34]} Nb3 {[%emt 0:00:43]} 23. Rc8 {[%emt 0:00:14]} Nxd4 {[%emt 0:00:19]} 24. Rxd8+ {[%emt 0:00:07]} Kg7 {[%emt 0:00:03]} 25. Nxe7 {[%emt 0:00:43]} Ne2+ {[%emt 0:04:49]} 26. Kf1 {[%emt 0:01:57]} Nf4 {[%emt 0:01:28]} 27. Rxd6 {[%emt 0:04:18]} Rxg2 {[%emt 0:02:34]} 28. Rb6 {[%emt 0:04:35]} Rxh2 {[%emt 0:04:42]} 29. Rxb5 {[%emt 0:06:36]} Nd3 {[%emt 0:01:35]} 30. Rb8 {[%emt 0:02:41]} Rf2+ {[%emt 0:01:05]} 31. Kg1 {[%emt 0:00:05]} Rxf3 {[%emt 0:01:57]} 32. Rg8+ {[%emt 0:03:37]} Kf6 {[%emt 0:02:16]} 33. Nd5+ {[%emt 0:00:05]} Ke5 {[%emt 0:03:04]} 34. Re8+ {[%emt 0:00:06]} Kd4 {[%emt 0:00:52]} 35. b5 {[%emt 0:00:41]} Nc5 {[%emt 0:01:18]} 36. Nb4 {[%emt 0:08:41]} Rb3 {[%emt 0:02:56]} 37. Nc6+ {[%emt 0:00:57]} Ke3 {[%emt 0:00:12]} 38. Ne5 {[%emt 0:00:16]} Nxe4 {[%emt 0:03:25]} 39. Nc4+ {[%emt 0:01:44]} Kf3 {[%emt 0:00:44]} 40. Rxe4 {[%emt 0:00:31]} Rxb5 {[%emt 0:00:28]} 41. Re7 {[%emt 0:31:36]} Kg3 {[%emt 0:02:54]} 42. Rxf7 {[%emt 0:00:00]} Rb1+ {[%emt 0:00:10]} 43. Rf1 {[%emt 0:00:00]} Rxf1+ {[%emt 0:00:11]} 44. Kxf1 {[%emt 0:00:00]} h5 {[%emt 0:01:02]} 45. Kg1 {[%emt 0:00:00]} g5 {[%emt 0:00:14]} 46. Ne3 {[%emt 0:00:00]} g4 {[%emt 0:00:48]} 47. Nf1+ {[%emt 0:00:00]} Kf4 {[%emt 0:00:48]} 48. Nh2 {[%emt 0:00:00]} g3 {[%emt 0:00:24]} 49. Kg2 {[%emt 0:00:00]} gxh2 {[%emt 0:00:33]} 50. Kxh2 {[%emt 0:00:00]} h4 {[%emt 0:00:03]} 51. Kh1 {[%emt 0:00:00]} Kg3 {[%emt 0:00:05]} 52. Kg1 {[%emt 0:00:00]} h3 {[%emt 0:00:03]} 53. Kh1 {[%emt 0:00:00]} h2 {[%emt 0:00:03]} 1/2-1/2

[Event "DEN-chT XtraCon 2018-19"]
[Site "Denmark"]
[Date "2019.01.12"]
[Round "5"]
[White "Olsen, Filip Boe"]
[Black "Hoi, Carsten"]
[Result "1-0"]
[ECO "E61"]
[WhiteElo "2359"]
[BlackElo "2374"]
[Annotator "NA"]
[PlyCount "70"]
[EventDate "2018.10.27"]
[EventType "team-tourn"]
[EventCountry "DEN"]
[SourceTitle "playchess.com"]
[Source "ChessBase"]
[SourceQuality "1"]
[TimeControl "40/5400+30:1800+30"]

1. d4 {[%emt 0:00:00]} Nf6 {[%emt 0:00:47]} 2. c4 {[%emt 0:00:00]} g6 {[%emt 0:01:12]} 3. Nc3 {[%emt 0:00:08]} c5 {[%emt 0:02:24]} 4. d5 {[%emt 0:00:45]} d6 {[%emt 0:00:20]} 5. e4 {[%emt 0:00:41]} Bg7 {[%emt 0:00:44]} 6. h3 {[%emt 0:01:19]} O-O {[%emt 0:07:16]} 7. Nf3 {[%emt 0:00:27]} a6 {[%emt 0:01:14]} 8. a4 {[%emt 0:05:38]} e5 {[%emt 0:03:10]} 9. Bg5 {[%emt 0:18:18]} h6 {[%emt 0:03:54]} 10. Be3 {[%emt 0:04:20]} Nh5 {[%emt 0:01:59]} 11. g3 {[%emt 0:16:56]} f5 {[%emt 0:25:26]} 12. exf5 {[%emt 0:07:13]} gxf5 {[%emt 0:02:50]} 13. Nh4 {[%emt 0:04:10]} Nf6 {[%emt 0:08:33]} 14. Bd3 {[%emt 0:05:41]} f4 {[%emt 0:06:27]} 15. gxf4 {[%emt 0:08:07]} exf4 {[%emt 0:02:21]} 16. Bxf4 {[%emt 0:01:14]} Ne4 {[%emt 0:08:25]} 17. Ng6 {[%emt 0:04:47]} Nxc3 {[%emt 0:03:31]} 18. bxc3 {[%emt 0:00:17]} Rf7 {[%emt 0:00:10]} 19. Qc2 {[%emt 0:04:00]} Qf6 {[%emt 0:03:05]} 20. Kd2 {[%emt 0:02:34]} Nd7 {[%emt 0:04:30]} 21. Be3 {[%emt 0:04:49]} Ne5 {[%emt 0:04:35]} 22. Nxe5 {[%emt 0:00:59]} Qxe5 {[%emt 0:01:14]} 23. Rag1 {[%emt 0:01:15]} Bd7 {[%emt 0:01:35]} 24. Kc1 {[%emt 0:02:23]} Kh8 {[%emt 0:02:32]} 25. Rg6 {[%emt 0:01:04]} Rf6 {[%emt 0:01:54]} 26. Rhg1 {[%emt 0:00:52]} Rxg6 {[%emt 0:00:21]} 27. Rxg6 {[%emt 0:00:03]} Rf8 {[%emt 0:02:22]} 28. Bxh6 {[%emt 0:01:18]} Bxh6+ {[%emt 0:00:35]} 29. Rxh6+ {[%emt 0:00:08]} Kg8 {[%emt 0:00:18]} 30. Rg6+ {[%emt 0:01:52]} Kf7 {[%emt 0:00:34]} 31. Rg3 {[%emt 0:01:11]} Qf4+ {[%emt 0:00:29]} 32. Re3 {[%emt 0:01:32]} Bxh3 {[%emt 0:00:41]} 33. Kb1 {[%emt 0:00:33]} Bg4 {[%emt 0:00:25]} 34. Qb2 {[%emt 0:01:07]} Bc8 {[%emt 0:00:30]} 35. Qb6 {[%emt 0:00:48]} Qxf2 {[%emt 0:00:00]} 1-0

[Event "DEN-chT XtraCon 2018-19"]
[Site "Denmark"]
[Date "2019.01.12"]
[Round "5"]
[White "Sylvan, Jacob"]
[Black "Borge, Nikolaj"]
[Result "1/2-1/2"]
[ECO "E97"]
[WhiteElo "2340"]
[BlackElo "2370"]
[Annotator "NA"]
[PlyCount "61"]
[EventDate "2018.10.27"]
[EventType "team-tourn"]
[EventCountry "DEN"]
[SourceTitle "playchess.com"]
[Source "ChessBase"]
[SourceQuality "1"]
[TimeControl "40/5400+30:1800+30"]

1. d4 {[%emt 0:00:00]} Nf6 {[%emt 0:00:00]} 2. c4 {[%emt 0:00:00]} g6 {[%emt 0:00:42]} 3. Nc3 {[%emt 0:00:02]} Bg7 {[%emt 0:00:04]} 4. e4 {[%emt 0:00:06]} d6 {[%emt 0:00:11]} 5. Nf3 {[%emt 0:00:07]} O-O {[%emt 0:00:04]} 6. Be2 {[%emt 0:00:07]} e5 {[%emt 0:00:04]} 7. O-O {[%emt 0:00:07]} Nc6 {[%emt 0:02:23]} 8. dxe5 {[%emt 0:00:47]} Nxe5 {[%emt 0:09:03]} 9. Nxe5 {[%emt 0:01:39]} dxe5 {[%emt 0:02:31]} 10. Be3 {[%emt 0:00:17]} b6 {[%emt 0:18:34]} 11. Qxd8 {[%emt 0:12:21]} Rxd8 {[%emt 0:00:03]} 12. Nd5 Rd7 {[%emt 0:12:24]} 13. f3 {[%emt 0:13:27]} c6 {[%emt 0:06:57]} 14. Nb4 {[%emt 0:16:12]} Bb7 {[%emt 0:03:24]} 15. Rfd1 {[%emt 0:10:15]} Rad8 {[%emt 0:03:05]} 16. Rxd7 {[%emt 0:04:56]} Nxd7 {[%emt 0:04:34]} 17. Rd1 {[%emt 0:02:04]} Bf6 {[%emt 0:03:36]} 18. Nd3 {[%emt 0:05:09]} Ba6 {[%emt 0:05:16]} 19. Nb4 {[%emt 0:01:00]} Bb7 {[%emt 0:00:04]} 20. Nd3 {[%emt 0:00:12]} Be7 {[%emt 0:01:27]} 21. b4 {[%emt 0:06:36]} Ba6 {[%emt 0:02:12]} 22. c5 {[%emt 0:07:11]} bxc5 {[%emt 0:02:52]} 23. bxc5 {[%emt 0:01:52]} Kf8 {[%emt 0:06:04]} 24. Nxe5 {[%emt 0:03:34]} Bxe2 {[%emt 0:01:52]} 25. Rxd7 {[%emt 0:00:16]} Rxd7 {[%emt 0:01:02]} 26. Nxd7+ {[%emt 0:00:06]} Ke8 {[%emt 0:00:07]} 27. Ne5 {[%emt 0:00:09]} Bb5 {[%emt 0:00:09]} 28. f4 {[%emt 0:00:49]} Bf6 {[%emt 0:01:07]} 29. Nf3 {[%emt 0:00:55]} Bb2 {[%emt 0:01:40]} 30. Nd4 {[%emt 0:03:25]} Bxd4 {[%emt 0:00:52]} 31. Bxd4 {[%emt 0:00:08]} 1/2-1/2

[Event "DEN-chT XtraCon 2018-19"]
[Site "Denmark"]
[Date "2019.01.12"]
[Round "5"]
[White "Palm, Nikolaj"]
[Black "Boe, Mads"]
[Result "1/2-1/2"]
[ECO "A80"]
[WhiteElo "2276"]
[BlackElo "2302"]
[Annotator "NA"]
[PlyCount "34"]
[EventDate "2018.10.27"]
[EventType "team-tourn"]
[EventCountry "DEN"]
[SourceTitle "playchess.com"]
[Source "ChessBase"]
[SourceQuality "1"]
[TimeControl "40/5400+30:1800+30"]

1. d4 {[%emt 0:00:00]} f5 {[%emt 0:00:00]} 2. Nf3 {[%emt 0:00:00]} Nf6 {[%emt 0:00:00]} 3. c4 {[%emt 0:00:06]} e6 {[%emt 0:00:00]} 4. Nc3 {[%emt 0:00:29]} Be7 {[%emt 0:01:25]} 5. e3 {[%emt 0:02:08]} d6 {[%emt 0:04:42]} 6. a3 {[%emt 0:01:41]} O-O {[%emt 0:05:10]} 7. Bd3 {[%emt 0:01:51]} Qe8 {[%emt 0:13:37]} 8. Qc2 {[%emt 0:03:06]} Bd8 {[%emt 0:16:49]} 9. Bd2 {[%emt 0:06:52]} Nc6 {[%emt 0:05:42]} 10. O-O-O {[%emt 0:06:40]} a6 {[%emt 0:02:51]} 11. h3 {[%emt 0:05:42]} b5 {[%emt 0:11:10]} 12. cxb5 {[%emt 0:05:27]} axb5 {[%emt 0:00:06]} 13. Bxb5 {[%emt 0:02:10]} Bd7 {[%emt 0:00:35]} 14. Bd3 {[%emt 0:05:17]} Ne7 {[%emt 0:02:13]} 15. g4 {[%emt 0:09:01]} Bc6 {[%emt 0:12:00]} 16. Be2 {[%emt 0:21:05]} Ne4 {[%emt 0:01:45]} 17. Rh2 {[%emt 0:01:50]} Nd5 {[%emt 0:03:12]} 1/2-1/2

[Event "DEN-chT XtraCon 2018-19"]
[Site "Denmark"]
[Date "2019.01.12"]
[Round "5"]
[White "Jaksland, Tim"]
[Black "Hove, Esben Kjems"]
[Result "1/2-1/2"]
[ECO "A11"]
[WhiteElo "2264"]
[BlackElo "2314"]
[Annotator "NA"]
[PlyCount "213"]
[EventDate "2018.10.27"]
[EventType "team-tourn"]
[EventCountry "DEN"]
[SourceTitle "playchess.com"]
[Source "ChessBase"]
[SourceQuality "1"]
[TimeControl "40/5400+30:1800+30"]

1. c4 {[%emt 0:00:00]} c6 {[%emt 0:00:00]} 2. Nf3 {[%emt 0:01:05]} d5 {[%emt 0:00:56]} 3. e3 {[%emt 0:00:23]} Nf6 {[%emt 0:00:15]} 4. Nc3 {[%emt 0:00:34]} e6 {[%emt 0:00:24]} 5. b3 {[%emt 0:01:40]} Bd6 {[%emt 0:00:55]} 6. Qc2 {[%emt 0:01:06]} O-O {[%emt 0:00:36]} 7. Bb2 {[%emt 0:00:19]} e5 {[%emt 0:01:20]} 8. cxd5 {[%emt 0:07:10]} cxd5 {[%emt 0:01:48]} 9. Nb5 {[%emt 0:08:22]} Nc6 {[%emt 0:00:29]} 10. Nxd6 {[%emt 0:00:07]} Qxd6 11. h3 {[%emt 0:23:14]} Bd7 {[%emt 0:31:11]} 12. Rc1 {[%emt 0:13:40]} Rac8 {[%emt 0:07:49]} 13. Qb1 {[%emt 0:00:32]} d4 {[%emt 0:07:15]} 14. Be2 {[%emt 0:15:34]} dxe3 {[%emt 0:15:25]} 15. dxe3 {[%emt 0:01:10]} Qb4+ {[%emt 0:02:57]} 16. Bc3 {[%emt 0:02:15]} Qe7 {[%emt 0:00:12]} 17. O-O {[%emt 0:01:09]} Nd5 {[%emt 0:01:49]} 18. Bb2 {[%emt 0:01:19]} e4 {[%emt 0:02:24]} 19. Nd4 {[%emt 0:03:52]} a6 {[%emt 0:05:08]} 20. Rfd1 {[%emt 0:02:40]} Nf6 {[%emt 0:03:16]} 21. Nxc6 {[%emt 0:01:20]} Rxc6 {[%emt 0:01:48]} 22. Rxc6 {[%emt 0:00:30]} Bxc6 {[%emt 0:00:07]} 23. Qc2 {[%emt 0:00:17]} Rd8 {[%emt 0:00:32]} 24. Rxd8+ {[%emt 0:01:33]} Qxd8 {[%emt 0:00:06]} 25. Bxa6 {[%emt 0:02:32]} Qa5 {[%emt 0:01:29]} 26. Bc4 {[%emt 0:04:06]} Qxa2 {[%emt 0:01:22]} 27. b4 {[%emt 0:00:19]} Qa4 {[%emt 0:04:40]} 28. Qxa4 {[%emt 0:00:33]} Bxa4 {[%emt 0:00:07]} 29. Bxf6 {[%emt 0:00:17]} gxf6 {[%emt 0:00:10]} 30. Kh2 {[%emt 0:00:18]} f5 {[%emt 0:00:35]} 31. Kg3 {[%emt 0:00:13]} Kg7 {[%emt 0:00:07]} 32. Kf4 {[%emt 0:00:11]} Kf6 {[%emt 0:00:06]} 33. Bd5 {[%emt 0:01:09]} b6 {[%emt 0:01:00]} 34. g4 {[%emt 0:00:31]} fxg4 {[%emt 0:01:41]} 35. hxg4 {[%emt 0:00:06]} h6 {[%emt 0:00:12]} 36. Bxe4 {[%emt 0:00:41]} Bb3 {[%emt 0:00:42]} 37. Bf5 {[%emt 0:00:49]} Ke7 {[%emt 0:00:44]} 38. Ke5 {[%emt 0:00:27]} f6+ {[%emt 0:00:07]} 39. Kd4 {[%emt 0:00:10]} Kd6 {[%emt 0:00:09]} 40. Be4 {[%emt 0:02:52]} Bd1 {[%emt 0:02:43]} 41. f3 {[%emt 0:30:29]} Be2 {[%emt 0:30:32]} 42. Kc3 {[%emt 0:04:20]} Ke5 {[%emt 0:01:10]} 43. Kd2 {[%emt 0:00:00]} Bb5 {[%emt 0:00:00]} 44. Bd3 {[%emt 0:00:00]} Bd7 {[%emt 0:00:00]} 45. Kc3 {[%emt 0:00:00]} Be6 {[%emt 0:00:00]} 46. f4+ {[%emt 0:00:00]} Kd6 {[%emt 0:00:00]} 47. Be2 {[%emt 0:00:00]} Bd5 {[%emt 0:00:00]} 48. Kd4 {[%emt 0:00:00]} Bb7 {[%emt 0:00:00]} 49. e4 {[%emt 0:00:00]} Bc6 {[%emt 0:00:00]} 50. Bf3 {[%emt 0:00:00]} Ke6 {[%emt 0:00:00]} 51. Bd1 {[%emt 0:00:00]} Kd6 {[%emt 0:00:00]} 52. Be2 {[%emt 0:00:00]} Ke6 {[%emt 0:00:00]} 53. Bc4+ {[%emt 0:00:00]} Kd6 {[%emt 0:00:00]} 54. e5+ {[%emt 0:00:00]} fxe5+ {[%emt 0:00:00]} 55. fxe5+ {[%emt 0:00:00]} Ke7 {[%emt 0:00:00]} 56. Ke3 {[%emt 0:00:00]} Be8 {[%emt 0:00:00]} 57. Ke4 {[%emt 0:00:00]} Bg6+ {[%emt 0:00:00]} 58. Kd4 {[%emt 0:00:00]} Be8 {[%emt 0:00:00]} 59. Bd3 {[%emt 0:00:00]} Bf7 {[%emt 0:00:00]} 60. Bf5 {[%emt 0:00:00]} Bb3 {[%emt 0:00:00]} 61. Ke3 {[%emt 0:00:00]} Ba2 {[%emt 0:00:00]} 62. Kf4 {[%emt 0:00:00]} Bb3 {[%emt 0:00:00]} 63. Kg3 {[%emt 0:00:00]} Bf7 {[%emt 0:00:00]} 64. Bd3 {[%emt 0:01:28]} Be8 {[%emt 0:00:00]} 65. Kf4 {[%emt 0:00:56]} Bd7 {[%emt 0:00:00]} 66. Bf5 {[%emt 0:00:57]} Ba4 {[%emt 0:00:00]} 67. g5 {[%emt 0:00:38]} hxg5+ {[%emt 0:00:00]} 68. Kxg5 {[%emt 0:00:05]} Bb3 {[%emt 0:00:00]} 69. Kf4 {[%emt 0:00:10]} Ba2 {[%emt 0:00:00]} 70. Ke3 {[%emt 0:00:05]} Bb3 {[%emt 0:00:33]} 71. Kd4 {[%emt 0:00:11]} Ba2 {[%emt 0:00:19]} 72. Bd3 {[%emt 0:00:14]} Bf7 {[%emt 0:01:06]} 73. Bc4 {[%emt 0:01:08]} Bg6 {[%emt 0:00:35]} 74. Bd5 {[%emt 0:01:27]} Bb1 {[%emt 0:00:37]} 75. Bc4 {[%emt 0:00:35]} Bg6 {[%emt 0:00:19]} 76. Bb3 {[%emt 0:00:27]} Bf5 {[%emt 0:01:01]} 77. Bg8 {[%emt 0:00:25]} Bb1 {[%emt 0:00:32]} 78. Bd5 {[%emt 0:00:50]} Kd7 {[%emt 0:01:33]} 79. Bb3 {[%emt 0:00:21]} Bg6 {[%emt 0:00:48]} 80. Ba4+ {[%emt 0:00:19]} Ke7 {[%emt 0:00:27]} 81. Bc6 {[%emt 0:00:10]} Bf7 {[%emt 0:00:24]} 82. Bd5 {[%emt 0:00:27]} Bh5 {[%emt 0:00:17]} 83. Kc3 {[%emt 0:01:54]} Be2 {[%emt 0:01:13]} 84. Bc4 {[%emt 0:00:12]} Bh5 {[%emt 0:00:21]} 85. Bb3 {[%emt 0:00:23]} Bg6 {[%emt 0:01:14]} 86. Kd4 {[%emt 0:00:12]} Bf5 {[%emt 0:00:30]} 87. Bd5 {[%emt 0:00:49]} Bg4 {[%emt 0:00:39]} 88. Bg8 {[%emt 0:00:10]} Bd1 {[%emt 0:01:15]} 89. Kc4 {[%emt 0:00:16]} Be2+ {[%emt 0:00:12]} 90. Kd5 {[%emt 0:00:13]} Bf3+ {[%emt 0:00:07]} 91. Kd4 {[%emt 0:00:16]} Bd1 {[%emt 0:00:20]} 92. Bc4 {[%emt 0:01:20]} Bh5 {[%emt 0:00:32]} 93. Bb3 {[%emt 0:00:54]} Bg6 {[%emt 0:01:25]} 94. e6 {[%emt 0:00:50]} Kd6 {[%emt 0:00:09]} 95. Kc4 {[%emt 0:01:15]} Be8 {[%emt 0:01:28]} 96. Kd4 {[%emt 0:00:06]} Bg6 {[%emt 0:00:09]} 97. Bc4 {[%emt 0:00:07]} Be8 {[%emt 0:00:30]} 98. Ke4 {[%emt 0:00:10]} Bg6+ {[%emt 0:01:49]} 99. Kf4 {[%emt 0:00:05]} Bc2 {[%emt 0:00:13]} 100. Kg5 {[%emt 0:00:12]} Ke7 {[%emt 0:00:08]} 101. Bd5 {[%emt 0:00:18]} Bd3 {[%emt 0:00:26]} 102. Bb3 {[%emt 0:00:13]} Bb1 {[%emt 0:01:26]} 103. Kf4 {[%emt 0:00:03]} Kd6 {[%emt 0:00:19]} 104. Kg5 {[%emt 0:00:05]} Ke7 {[%emt 0:00:07]} 105. Kf4 {[%emt 0:00:03]} Kd6 {[%emt 0:00:07]} 106. Kg5 {[%emt 0:00:02]} Ke7 {[%emt 0:00:08]} 107. Kf4 {[%emt 0:00:03]} 1/2-1/2